[Event "*** Titled Tuesday Blitz"]
[Site "Chess.com"]
[Date "2020.05.26"]
[Round "6"]
[White "ChocolateRoses"]
[Black "ADODOVE"]
[Result "1-0"]
[WhiteElo "2283"]
[BlackElo "2000"]
[TimeControl "180+1"]
[EndTime "11:07:36 PDT"]
[Termination "ChocolateRoses won on time"]

1. Nf3 {[%clk 0:03:00.9]} 1... Nf6 {[%clk 0:02:58.9]} 2. g3 {[%clk 0:03:01.1]}
2... d5 {[%clk 0:02:57.1]} 3. Bg2 {[%clk 0:02:58.9]} 3... Bg4 {[%clk 0:02:56.6]}
4. c4 {[%clk 0:02:57]} 4... e6 {[%clk 0:02:54.9]} 5. cxd5 {[%clk 0:02:46.6]}
5... exd5 {[%clk 0:02:53.7]} 6. O-O {[%clk 0:02:46.4]} 6... Nbd7 {[%clk
0:02:53.1]} 7. Nc3 {[%clk 0:02:35.6]} 7... Be7 {[%clk 0:02:48.1]} 8. d3 {[%clk
0:02:30.3]} 8... O-O {[%clk 0:02:45.8]} 9. Qc2 {[%clk 0:02:30.3]} 9... c5 {[%clk
0:02:34.2]} 10. e4 {[%clk 0:02:15.5]} 10... d4 {[%clk 0:02:32.1]} 11. Ne2 {[%clk
0:02:15.3]} 11... Rc8 {[%clk 0:02:31.2]} 12. h3 {[%clk 0:02:14.3]} 12... Bxf3
{[%clk 0:02:27.3]} 13. Bxf3 {[%clk 0:02:15.2]} 13... c4 {[%clk 0:02:09.1]} 14.
Bg2 {[%clk 0:01:24.4]} 14... c3 {[%clk 0:01:56.7]} 15. bxc3 {[%clk 0:01:21]}
15... dxc3 {[%clk 0:01:54.2]} 16. Be3 {[%clk 0:01:15.8]} 16... Qa5 {[%clk
0:01:48.3]} 17. f4 {[%clk 0:01:08.2]} 17... b5 {[%clk 0:01:30.6]} 18. g4 {[%clk
0:00:38.3]} 18... b4 {[%clk 0:01:25.1]} 19. g5 {[%clk 0:00:35.4]} 19... Ne8
{[%clk 0:01:16.2]} 20. Ng3 {[%clk 0:00:20.5]} 20... g6 {[%clk 0:01:11.5]} 21. f5
{[%clk 0:00:18.9]} 21... Bc5 {[%clk 0:01:06]} 22. d4 {[%clk 0:00:18.4]} 22...
Bb6 {[%clk 0:01:03.8]} 23. Qf2 {[%clk 0:00:16.2]} 23... c2 {[%clk 0:00:59.7]}
24. Rfc1 {[%clk 0:00:14.7]} 24... Qa4 {[%clk 0:00:42.3]} 25. f6 {[%clk
0:00:14.5]} 25... Nd6 {[%clk 0:00:29.7]} 26. Ne2 {[%clk 0:00:12.3]} 26... Rfd8
{[%clk 0:00:07.7]} 27. Qh4 {[%clk 0:00:11.6]} 27... Ne8 {[%clk 0:00:07.2]} 28.
Nf4 {[%clk 0:00:05.9]} 28... b3 {[%clk 0:00:04.6]} 29. axb3 {[%clk 0:00:05.2]}
29... Qxb3 {[%clk 0:00:04.4]} 30. Nd5 {[%clk 0:00:05.7]} 1-0

[Event "*** Titled Tuesday Blitz"]
[Site "Chess.com"]
[Date "2020.05.26"]
[Round "6"]
[White "PKCLUB"]
[Black "Lector118"]
[Result "1-0"]
[WhiteElo "2610"]
[BlackElo "2404"]
[TimeControl "180+1"]
[EndTime "11:07:37 PDT"]
[Termination "PKCLUB won on time"]

1. d4 {[%clk 0:03:00.9]} 1... Nf6 {[%clk 0:02:59.3]} 2. Nf3 {[%clk 0:02:59]}
2... g6 {[%clk 0:02:58.8]} 3. Bf4 {[%clk 0:02:58.3]} 3... Bg7 {[%clk 0:02:58.7]}
4. e3 {[%clk 0:02:58.5]} 4... O-O {[%clk 0:02:58.6]} 5. h3 {[%clk 0:02:58.3]}
5... d6 {[%clk 0:02:58.9]} 6. Nbd2 {[%clk 0:02:58]} 6... Nbd7 {[%clk 0:02:59.6]}
7. Be2 {[%clk 0:02:48.2]} 7... Re8 {[%clk 0:02:59.4]} 8. Bh2 {[%clk 0:02:46.9]}
8... e5 {[%clk 0:02:59.2]} 9. dxe5 {[%clk 0:02:42.4]} 9... dxe5 {[%clk
0:03:00.1]} 10. Nc4 {[%clk 0:02:40.9]} 10... Qe7 {[%clk 0:02:43.6]} 11. Nfxe5
{[%clk 0:02:28.9]} 11... Nxe5 {[%clk 0:02:26.6]} 12. Bxe5 {[%clk 0:02:27.7]}
12... b5 {[%clk 0:02:21.4]} 13. Bf3 {[%clk 0:02:02.7]} 13... bxc4 {[%clk
0:01:58.1]} 14. Bxf6 {[%clk 0:02:01.2]} 14... Bxf6 {[%clk 0:01:57.3]} 15. Bxa8
{[%clk 0:02:01]} 15... Bxb2 {[%clk 0:01:56.1]} 16. Rb1 {[%clk 0:01:51.2]} 16...
Bc3+ {[%clk 0:01:36.7]} 17. Kf1 {[%clk 0:01:50.5]} 17... Bf5 {[%clk 0:01:16.7]}
18. Bc6 {[%clk 0:01:13.8]} 18... Rd8 {[%clk 0:01:15.4]} 19. Qe2 {[%clk 0:01:14]}
19... Rd2 {[%clk 0:00:53.9]} 20. Qxc4 {[%clk 0:01:08.9]} 20... Rxc2 {[%clk
0:00:54.2]} 21. Ba4 {[%clk 0:00:48.3]} 21... Rb2 {[%clk 0:00:27.8]} 22. Rxb2
{[%clk 0:00:44.6]} 22... Bxb2 {[%clk 0:00:28.7]} 23. Ke2 {[%clk 0:00:36.6]}
23... Bf6 {[%clk 0:00:22.5]} 24. Rc1 {[%clk 0:00:33.1]} 24... Be5 {[%clk
0:00:21.7]} 25. Bc6 {[%clk 0:00:30.2]} 25... Kg7 {[%clk 0:00:18.1]} 26. Be4
{[%clk 0:00:27.8]} 26... Be6 {[%clk 0:00:18]} 27. Bd5 {[%clk 0:00:27.7]} 27...
Bc8 {[%clk 0:00:16.4]} 28. g4 {[%clk 0:00:25.7]} 28... Bd6 {[%clk 0:00:16.1]}
29. Rc2 {[%clk 0:00:25.2]} 29... a5 {[%clk 0:00:13.1]} 30. Qd4+ {[%clk
0:00:24.4]} 30... f6 {[%clk 0:00:13.6]} 31. Bc4 {[%clk 0:00:23]} 31... Bb7
{[%clk 0:00:12.7]} 32. Rb2 {[%clk 0:00:21.1]} 32... Bc6 {[%clk 0:00:12.2]} 33.
Rb8 {[%clk 0:00:20.5]} 33... h6 {[%clk 0:00:08.1]} 34. Bb3 {[%clk 0:00:19.8]}
34... a4 {[%clk 0:00:05.4]} 35. Qc4 {[%clk 0:00:19.3]} 1-0

[Event "*** Titled Tuesday Blitz"]
[Site "Chess.com"]
[Date "2020.05.26"]
[Round "6"]
[White "Zurability"]
[Black "bilelou"]
[Result "0-1"]
[WhiteElo "2708"]
[BlackElo "2525"]
[TimeControl "180+1"]
[EndTime "11:07:39 PDT"]
[Termination "bilelou won by checkmate"]

1. Nf3 {[%clk 0:03:00.9]} 1... Nf6 {[%clk 0:02:59.4]} 2. c4 {[%clk 0:02:58.7]}
2... e6 {[%clk 0:02:59.5]} 3. d4 {[%clk 0:02:57.5]} 3... d5 {[%clk 0:03:00.4]}
4. Qc2 {[%clk 0:02:56.1]} 4... Bb4+ {[%clk 0:02:50.5]} 5. Nbd2 {[%clk
0:02:48.6]} 5... O-O {[%clk 0:02:49.1]} 6. g3 {[%clk 0:02:42.5]} 6... b6 {[%clk
0:02:47.2]} 7. Bg2 {[%clk 0:02:41.8]} 7... Bb7 {[%clk 0:02:45.6]} 8. O-O {[%clk
0:02:41.4]} 8... Nbd7 {[%clk 0:02:45]} 9. Rd1 {[%clk 0:02:29.6]} 9... dxc4
{[%clk 0:02:37.2]} 10. Qxc4 {[%clk 0:02:14.2]} 10... a5 {[%clk 0:02:35]} 11. Qc2
{[%clk 0:02:04.1]} 11... Rc8 {[%clk 0:02:23.4]} 12. e4 {[%clk 0:02:00.5]} 12...
c5 {[%clk 0:02:17.1]} 13. e5 {[%clk 0:01:57.4]} 13... cxd4 {[%clk 0:02:14]} 14.
Qd3 {[%clk 0:01:53.4]} 14... Ng4 {[%clk 0:02:13.8]} 15. Qxd4 {[%clk 0:01:26.8]}
15... Nxf2 {[%clk 0:02:05.2]} 16. Qxf2 {[%clk 0:01:22.4]} 16... Bc5 {[%clk
0:02:04.7]} 17. Nd4 {[%clk 0:01:22.4]} 17... Bxg2 {[%clk 0:01:55.6]} 18. Kxg2
{[%clk 0:01:21.8]} 18... Nxe5 {[%clk 0:01:56.2]} 19. N2b3 {[%clk 0:01:15.8]}
19... Qd5+ {[%clk 0:01:53.4]} 20. Kh3 {[%clk 0:01:11.5]} 20... a4 {[%clk
0:01:34.9]} 21. Nxc5 {[%clk 0:00:50.9]} 21... bxc5 {[%clk 0:01:33]} 22. Bf4
{[%clk 0:00:37.5]} 22... cxd4 {[%clk 0:01:20.4]} 23. Rxd4 {[%clk 0:00:29.7]}
23... Qb5 {[%clk 0:01:16.6]} 24. Bxe5 {[%clk 0:00:20.6]} 24... Qxe5 {[%clk
0:01:15.8]} 25. Rxa4 {[%clk 0:00:21.2]} 25... Rb8 {[%clk 0:01:13.4]} 26. Rd4
{[%clk 0:00:15.3]} 26... Rfc8 {[%clk 0:01:09.9]} 27. Rad1 {[%clk 0:00:15.2]}
27... h5 {[%clk 0:01:05.8]} 28. R1d2 {[%clk 0:00:14.9]} 28... Rc1 {[%clk
0:01:00.6]} 29. Qf3 {[%clk 0:00:14.6]} 29... Rcc8 {[%clk 0:00:45.2]} 30. Rd7
{[%clk 0:00:13.5]} 30... Rf8 {[%clk 0:00:44.4]} 31. R7d4 {[%clk 0:00:14.1]}
31... Rb5 {[%clk 0:00:41.8]} 32. b4 {[%clk 0:00:11.4]} 32... Qe1 {[%clk
0:00:34.8]} 33. Re2 {[%clk 0:00:08.4]} 33... Qb1 {[%clk 0:00:32]} 34. a3 {[%clk
0:00:06.6]} 34... Rf5 {[%clk 0:00:29.8]} 35. Rf4 {[%clk 0:00:06.5]} 35... g5
{[%clk 0:00:25]} 36. Rxf5 {[%clk 0:00:05.9]} 36... g4+ {[%clk 0:00:25]} 37. Kh4
{[%clk 0:00:05.1]} 37... gxf3 {[%clk 0:00:24.4]} 38. Rg5+ {[%clk 0:00:05.6]}
38... Kh7 {[%clk 0:00:22.9]} 39. Rxh5+ {[%clk 0:00:06]} 39... Kg7 {[%clk
0:00:23.5]} 40. Rg5+ {[%clk 0:00:06.7]} 40... Kf6 {[%clk 0:00:24]} 41. Rf2
{[%clk 0:00:07.2]} 41... Rh8+ {[%clk 0:00:24.3]} 42. Kg4 {[%clk 0:00:06.8]}
42... Qe4# {[%clk 0:00:24.5]} 0-1

[Event "*** Titled Tuesday Blitz"]
[Site "Chess.com"]
[Date "2020.05.26"]
[Round "6"]
[White "RobertoJBM"]
[Black "CroissantNeuf"]
[Result "1-0"]
[WhiteElo "2584"]
[BlackElo "2358"]
[TimeControl "180+1"]
[EndTime "11:07:39 PDT"]
[Termination "RobertoJBM won on time"]

1. e4 {[%clk 0:03:00.9]} 1... c6 {[%clk 0:02:59.6]} 2. d4 {[%clk 0:02:59.1]}
2... d5 {[%clk 0:03:00]} 3. Nc3 {[%clk 0:02:58.9]} 3... dxe4 {[%clk 0:02:59.7]}
4. Nxe4 {[%clk 0:02:59.8]} 4... Nf6 {[%clk 0:03:00.3]} 5. Nxf6+ {[%clk
0:02:59.9]} 5... exf6 {[%clk 0:03:01.2]} 6. Bc4 {[%clk 0:03:00.5]} 6... Bd6
{[%clk 0:03:00.7]} 7. Qe2+ {[%clk 0:03:01]} 7... Qe7 {[%clk 0:02:55.6]} 8. Qxe7+
{[%clk 0:03:00.6]} 8... Kxe7 {[%clk 0:02:56.5]} 9. Ne2 {[%clk 0:03:01.5]} 9...
Re8 {[%clk 0:02:56.2]} 10. Bf4 {[%clk 0:03:01.1]} 10... Bxf4 {[%clk 0:02:54.3]}
11. Nxf4 {[%clk 0:03:02]} 11... Kd6+ {[%clk 0:02:54.5]} 12. Kd2 {[%clk
0:03:01.9]} 12... Be6 {[%clk 0:02:36.3]} 13. Nxe6 {[%clk 0:02:40.4]} 13... fxe6
{[%clk 0:02:35.9]} 14. Bd3 {[%clk 0:02:41.3]} 14... f5 {[%clk 0:02:13.4]} 15.
Rae1 {[%clk 0:02:09.6]} 15... Nd7 {[%clk 0:02:11.5]} 16. c4 {[%clk 0:02:08.8]}
16... c5 {[%clk 0:02:04.1]} 17. Kc3 {[%clk 0:02:01.6]} 17... cxd4+ {[%clk
0:02:01.3]} 18. Kxd4 {[%clk 0:02:02.5]} 18... e5+ {[%clk 0:02:01.8]} 19. Kc3
{[%clk 0:02:01.5]} 19... e4 {[%clk 0:01:59.4]} 20. Be2 {[%clk 0:02:00.6]} 20...
Nf6 {[%clk 0:01:33.1]} 21. b4 {[%clk 0:01:48.3]} 21... a5 {[%clk 0:01:23.6]} 22.
c5+ {[%clk 0:01:18.9]} 22... Ke5 {[%clk 0:01:22.3]} 23. a3 {[%clk 0:01:19.8]}
23... Nd5+ {[%clk 0:01:19.7]} 24. Kb3 {[%clk 0:01:17.2]} 24... axb4 {[%clk
0:01:08.4]} 25. axb4 {[%clk 0:01:18.1]} 25... Nf4 {[%clk 0:00:50.9]} 26. Bc4
{[%clk 0:01:07.8]} 26... Red8 {[%clk 0:00:41.2]} 27. g3 {[%clk 0:01:07.3]} 27...
Nd3 {[%clk 0:00:35.8]} 28. Re2 {[%clk 0:00:57.3]} 28... Ra7 {[%clk 0:00:22.9]}
29. f3 {[%clk 0:00:43.6]} 29... Rd4 {[%clk 0:00:19.9]} 30. fxe4 {[%clk
0:00:41.2]} 30... fxe4 {[%clk 0:00:19.7]} 31. Rf1 {[%clk 0:00:37.3]} 31... Ra8
{[%clk 0:00:12.3]} 32. Bxd3 {[%clk 0:00:32.6]} 32... Rxd3+ {[%clk 0:00:12.3]}
33. Kc4 {[%clk 0:00:33.5]} 33... Raa3 {[%clk 0:00:06.7]} 34. Rf7 {[%clk
0:00:31.3]} 34... Rdc3+ {[%clk 0:00:06.6]} 35. Kb5 {[%clk 0:00:31.5]} 35... e3
{[%clk 0:00:07]} 36. Rxg7 {[%clk 0:00:30.6]} 36... Kd4 {[%clk 0:00:05]} 37. Rd7+
{[%clk 0:00:29.6]} 37... Ke4 {[%clk 0:00:04.9]} 38. Rxb7 {[%clk 0:00:28.8]}
38... Kf3 {[%clk 0:00:05.2]} 39. Rb2 {[%clk 0:00:26.3]} 39... e2 {[%clk
0:00:04.2]} 40. Rf7+ {[%clk 0:00:26.1]} 1-0

[Event "*** Titled Tuesday Blitz"]
[Site "Chess.com"]
[Date "2020.05.26"]
[Round "6"]
[White "slowdgehammer"]
[Black "Sergey85Rodchenkov"]
[Result "0-1"]
[WhiteElo "2353"]
[BlackElo "2521"]
[TimeControl "180+1"]
[EndTime "11:07:39 PDT"]
[Termination "Sergey85Rodchenkov won by resignation"]

1. e4 {[%clk 0:03:00.9]} 1... c5 {[%clk 0:02:59.4]} 2. Nf3 {[%clk 0:03:01.1]}
2... e6 {[%clk 0:02:59.9]} 3. d3 {[%clk 0:03:00]} 3... Nc6 {[%clk 0:02:56.4]} 4.
g3 {[%clk 0:03:00.1]} 4... Nf6 {[%clk 0:02:53.7]} 5. Bg2 {[%clk 0:02:59.6]} 5...
d6 {[%clk 0:02:53.7]} 6. O-O {[%clk 0:02:59.3]} 6... Be7 {[%clk 0:02:54.3]} 7.
c3 {[%clk 0:02:59.4]} 7... O-O {[%clk 0:02:54.7]} 8. Re1 {[%clk 0:02:59.3]} 8...
Bd7 {[%clk 0:02:54.8]} 9. a3 {[%clk 0:02:57.9]} 9... a6 {[%clk 0:02:51.5]} 10.
b4 {[%clk 0:02:57.8]} 10... Rc8 {[%clk 0:02:48]} 11. Bb2 {[%clk 0:02:57.4]}
11... b5 {[%clk 0:02:47.5]} 12. Nbd2 {[%clk 0:02:56.8]} 12... a5 {[%clk
0:02:39.5]} 13. bxa5 {[%clk 0:02:49.7]} 13... Nxa5 {[%clk 0:02:30.7]} 14. d4
{[%clk 0:02:48.7]} 14... cxd4 {[%clk 0:02:27.2]} 15. cxd4 {[%clk 0:02:49.6]}
15... Qb6 {[%clk 0:02:23.5]} 16. Rb1 {[%clk 0:02:33.8]} 16... Qa7 {[%clk
0:02:22.1]} 17. h4 {[%clk 0:02:23.7]} 17... h6 {[%clk 0:02:21.8]} 18. e5 {[%clk
0:02:09.6]} 18... Nd5 {[%clk 0:02:17]} 19. exd6 {[%clk 0:02:00]} 19... Bxd6
{[%clk 0:02:16.9]} 20. Ne5 {[%clk 0:02:00.7]} 20... Bxe5 {[%clk 0:02:10.7]} 21.
dxe5 {[%clk 0:02:00]} 21... Rfd8 {[%clk 0:02:06.1]} 22. Qg4 {[%clk 0:01:56.6]}
22... Nc4 {[%clk 0:01:50.8]} 23. Ne4 {[%clk 0:01:46.8]} 23... Nxb2 {[%clk
0:01:42.6]} 24. Rxb2 {[%clk 0:01:47.7]} 24... Qxa3 {[%clk 0:01:40.1]} 25. Rd2
{[%clk 0:01:25.8]} 25... Rc4 {[%clk 0:01:37]} 26. Red1 {[%clk 0:01:20.6]} 26...
Bc6 {[%clk 0:01:07.9]} 27. Qe2 {[%clk 0:01:17.1]} 27... Rf8 {[%clk 0:00:51.4]}
28. Ra2 {[%clk 0:00:58.7]} 28... Nc3 {[%clk 0:00:41.5]} 29. Rxa3 {[%clk
0:00:42.7]} 29... Nxe2+ {[%clk 0:00:40.6]} 30. Kf1 {[%clk 0:00:43.3]} 30... Bxe4
{[%clk 0:00:40.7]} 31. f3 {[%clk 0:00:31.8]} 31... Bc2 {[%clk 0:00:27.8]} 32.
Kxe2 {[%clk 0:00:15.6]} 32... Bxd1+ {[%clk 0:00:27.7]} 33. Kxd1 {[%clk
0:00:16.5]} 33... b4 {[%clk 0:00:28.1]} 34. Rb3 {[%clk 0:00:14.7]} 34... Rb8
{[%clk 0:00:27.7]} 35. Bf1 {[%clk 0:00:14.1]} 35... Rc3 {[%clk 0:00:27.6]} 36.
Rxc3 {[%clk 0:00:11.4]} 36... bxc3 {[%clk 0:00:27.6]} 37. Kc2 {[%clk 0:00:12.3]}
37... Rb2+ {[%clk 0:00:25.5]} 38. Kxc3 {[%clk 0:00:11.7]} 38... Rf2 {[%clk
0:00:25.8]} 39. Be2 {[%clk 0:00:03.8]} 39... Rxe2 {[%clk 0:00:25.2]} 40. Kd3
{[%clk 0:00:04.3]} 40... Ra2 {[%clk 0:00:25]} 0-1

[Event "*** Titled Tuesday Blitz"]
[Site "Chess.com"]
[Date "2020.05.26"]
[Round "6"]
[White "AnishGiri"]
[Black "GMStefanova"]
[Result "1/2-1/2"]
[WhiteElo "2956"]
[BlackElo "2641"]
[TimeControl "180+1"]
[EndTime "11:07:40 PDT"]
[Termination "Game drawn by repetition"]

1. e4 {[%clk 0:02:19.7]} 1... c6 {[%clk 0:02:59.7]} 2. d4 {[%clk 0:02:19.4]}
2... d5 {[%clk 0:02:59.8]} 3. e5 {[%clk 0:02:17.4]} 3... c5 {[%clk 0:03:00]} 4.
Nf3 {[%clk 0:02:17.1]} 4... cxd4 {[%clk 0:02:58.7]} 5. Nxd4 {[%clk 0:02:18]}
5... Nc6 {[%clk 0:02:58.6]} 6. Nxc6 {[%clk 0:02:18.1]} 6... bxc6 {[%clk
0:02:58.4]} 7. Bd3 {[%clk 0:02:18.9]} 7... e6 {[%clk 0:02:58.7]} 8. O-O {[%clk
0:02:19]} 8... Ne7 {[%clk 0:02:58.9]} 9. Nd2 {[%clk 0:02:16.3]} 9... Ng6 {[%clk
0:02:58.2]} 10. Nf3 {[%clk 0:02:13.9]} 10... Be7 {[%clk 0:02:57.3]} 11. Re1
{[%clk 0:02:10.3]} 11... O-O {[%clk 0:02:54.3]} 12. c3 {[%clk 0:02:09.4]} 12...
c5 {[%clk 0:02:48.8]} 13. b3 {[%clk 0:01:51.8]} 13... Bb7 {[%clk 0:02:45.3]} 14.
Qe2 {[%clk 0:01:51.5]} 14... a5 {[%clk 0:02:42.8]} 15. Rb1 {[%clk 0:01:51.3]}
15... Bc6 {[%clk 0:02:36.1]} 16. Bd2 {[%clk 0:01:51]} 16... Qc7 {[%clk
0:02:20.5]} 17. h4 {[%clk 0:01:48.7]} 17... Rfd8 {[%clk 0:02:12]} 18. h5 {[%clk
0:01:48.3]} 18... Nf8 {[%clk 0:02:11.6]} 19. h6 {[%clk 0:01:47.9]} 19... g6
{[%clk 0:02:07.1]} 20. Nh2 {[%clk 0:01:46.7]} 20... d4 {[%clk 0:02:03]} 21. c4
{[%clk 0:01:42.3]} 21... a4 {[%clk 0:02:01.5]} 22. b4 {[%clk 0:01:38.4]} 22...
cxb4 {[%clk 0:01:57.5]} 23. Bxb4 {[%clk 0:01:38.6]} 23... Bxb4 {[%clk
0:01:56.6]} 24. Rxb4 {[%clk 0:01:39.5]} 24... Nd7 {[%clk 0:01:52.3]} 25. Ng4
{[%clk 0:01:38.4]} 25... Rdb8 {[%clk 0:01:49.8]} 26. Qd2 {[%clk 0:01:36.6]}
26... Qd8 {[%clk 0:01:43.6]} 27. Reb1 {[%clk 0:01:29.4]} 27... Rxb4 {[%clk
0:01:42.6]} 28. Rxb4 {[%clk 0:01:29.8]} 28... Qh4 {[%clk 0:01:37.4]} 29. Qf4
{[%clk 0:01:29.5]} 29... Qe7 {[%clk 0:01:33.4]} 30. a3 {[%clk 0:01:16.5]} 30...
Rd8 {[%clk 0:01:24.2]} 31. Nf6+ {[%clk 0:01:07.4]} 31... Nxf6 {[%clk 0:01:15.9]}
32. exf6 {[%clk 0:01:08.3]} 32... Qf8 {[%clk 0:00:59.7]} 33. f3 {[%clk
0:01:06.8]} 33... e5 {[%clk 0:00:55.8]} 34. Qxe5 {[%clk 0:01:06.8]} 34... Qxh6
{[%clk 0:00:53.8]} 35. Rb8 {[%clk 0:01:00.7]} 35... Rxb8 {[%clk 0:00:35.5]} 36.
Qxb8+ {[%clk 0:01:00.4]} 36... Qf8 {[%clk 0:00:35.7]} 37. Qb6 {[%clk 0:00:30.7]}
37... Qxa3 {[%clk 0:00:21.3]} 38. Qxc6 {[%clk 0:00:25.3]} 38... Qc1+ {[%clk
0:00:20.5]} 39. Kh2 {[%clk 0:00:24.9]} 39... Qh6+ {[%clk 0:00:16.4]} 40. Kg3
{[%clk 0:00:25]} 40... Qg5+ {[%clk 0:00:16.4]} 41. Kf2 {[%clk 0:00:24.3]} 41...
Qe3+ {[%clk 0:00:15.4]} 42. Kg3 {[%clk 0:00:24.9]} 42... Qg5+ {[%clk 0:00:15]}
43. Kh3 {[%clk 0:00:24.3]} 43... Qh5+ {[%clk 0:00:11.7]} 44. Kg3 {[%clk
0:00:24.7]} 44... Qg5+ {[%clk 0:00:11.7]} 1/2-1/2

[Event "*** Titled Tuesday Blitz"]
[Site "Chess.com"]
[Date "2020.05.26"]
[Round "6"]
[White "platy3"]
[Black "nihalsarin"]
[Result "0-1"]
[WhiteElo "2694"]
[BlackElo "3030"]
[TimeControl "180+1"]
[EndTime "11:07:41 PDT"]
[Termination "nihalsarin won on time"]

1. e4 {[%clk 0:02:59.4]} 1... g6 {[%clk 0:03:00.2]} 2. d4 {[%clk 0:02:58.7]}
2... Bg7 {[%clk 0:03:00.9]} 3. Nc3 {[%clk 0:02:58.7]} 3... c6 {[%clk 0:03:00.9]}
4. f4 {[%clk 0:02:55.1]} 4... d5 {[%clk 0:03:00.5]} 5. e5 {[%clk 0:02:54.9]}
5... Nh6 {[%clk 0:03:01.1]} 6. Be2 {[%clk 0:02:53.6]} 6... Na6 {[%clk
0:02:44.5]} 7. g4 {[%clk 0:02:20.1]} 7... Nc7 {[%clk 0:02:30.5]} 8. h3 {[%clk
0:02:14.7]} 8... f5 {[%clk 0:02:19]} 9. Be3 {[%clk 0:02:04.5]} 9... Be6 {[%clk
0:02:01.6]} 10. Qd2 {[%clk 0:01:51.6]} 10... fxg4 {[%clk 0:01:55.7]} 11. hxg4
{[%clk 0:01:51]} 11... Nxg4 {[%clk 0:01:56.6]} 12. O-O-O {[%clk 0:01:50.6]}
12... Qd7 {[%clk 0:01:45.3]} 13. Nf3 {[%clk 0:01:27.4]} 13... Bf5 {[%clk
0:01:43.3]} 14. Nh4 {[%clk 0:01:04.2]} 14... O-O-O {[%clk 0:01:31.7]} 15. Nxf5
{[%clk 0:01:01.9]} 15... Qxf5 {[%clk 0:01:31.9]} 16. Rdg1 {[%clk 0:00:58.5]}
16... h5 {[%clk 0:01:00.4]} 17. Rh4 {[%clk 0:00:56.8]} 17... Ne6 {[%clk
0:00:18.7]} 18. Na4 {[%clk 0:00:15.6]} 18... Nxe3 {[%clk 0:00:13.6]} 19. Qxe3
{[%clk 0:00:15.2]} 19... Bh6 {[%clk 0:00:14.3]} 20. Rf1 {[%clk 0:00:05.3]} 20...
Rdf8 {[%clk 0:00:14.2]} 21. Bd3 {[%clk 0:00:02.4]} 21... Qf7 {[%clk 0:00:14.9]}
22. Kb1 {[%clk 0:00:02.1]} 22... Bxf4 {[%clk 0:00:15.5]} 23. Qe1 {[%clk
0:00:02.3]} 23... g5 {[%clk 0:00:16]} 24. Rhh1 {[%clk 0:00:02.3]} 24... h4
{[%clk 0:00:13.2]} 25. Qa5 {[%clk 0:00:02.4]} 25... Kb8 {[%clk 0:00:12.7]} 26.
Nc5 {[%clk 0:00:02.9]} 26... Nxc5 {[%clk 0:00:13.3]} 27. Qxc5 {[%clk 0:00:03.7]}
27... Qe6 {[%clk 0:00:11.2]} 28. a4 {[%clk 0:00:03.5]} 28... g4 {[%clk
0:00:11.4]} 29. a5 {[%clk 0:00:04]} 29... g3 {[%clk 0:00:11.8]} 30. Rfg1 {[%clk
0:00:03.5]} 30... h3 {[%clk 0:00:09.8]} 31. a6 {[%clk 0:00:03.4]} 31... b6
{[%clk 0:00:09.9]} 0-1

[Event "*** Titled Tuesday Blitz"]
[Site "Chess.com"]
[Date "2020.05.26"]
[Round "6"]
[White "velemajstor767276"]
[Black "Stronger1799"]
[Result "1-0"]
[WhiteElo "2593"]
[BlackElo "2373"]
[TimeControl "180+1"]
[EndTime "11:07:43 PDT"]
[Termination "velemajstor767276 won by checkmate"]

1. d4 {[%clk 0:03:00.9]} 1... Nf6 {[%clk 0:02:51.1]} 2. Bg5 {[%clk 0:02:59.5]}
2... g6 {[%clk 0:02:50.4]} 3. Bxf6 {[%clk 0:02:59.7]} 3... exf6 {[%clk
0:02:51.1]} 4. e3 {[%clk 0:03:00.3]} 4... Bg7 {[%clk 0:02:51.6]} 5. c4 {[%clk
0:03:00.9]} 5... O-O {[%clk 0:02:52]} 6. Nc3 {[%clk 0:03:01.5]} 6... f5 {[%clk
0:02:50.6]} 7. Nge2 {[%clk 0:03:01.4]} 7... d6 {[%clk 0:02:50.9]} 8. g3 {[%clk
0:03:01.5]} 8... Re8 {[%clk 0:02:51.3]} 9. Bg2 {[%clk 0:03:01.9]} 9... Nd7
{[%clk 0:02:51.6]} 10. O-O {[%clk 0:02:59.6]} 10... Nf8 {[%clk 0:02:51.7]} 11.
b4 {[%clk 0:02:47.8]} 11... c5 {[%clk 0:02:39.6]} 12. Rb1 {[%clk 0:02:43.9]}
12... Rb8 {[%clk 0:02:32]} 13. bxc5 {[%clk 0:02:09.7]} 13... dxc5 {[%clk
0:02:30.7]} 14. Nd5 {[%clk 0:02:10.2]} 14... Ne6 {[%clk 0:02:19.6]} 15. dxc5
{[%clk 0:01:53.3]} 15... Nxc5 {[%clk 0:02:17.2]} 16. Nd4 {[%clk 0:01:50.5]}
16... Bd7 {[%clk 0:01:44.6]} 17. Nb5 {[%clk 0:01:48.1]} 17... a6 {[%clk
0:01:21.3]} 18. Nd4 {[%clk 0:01:15.7]} 18... Ba4 {[%clk 0:01:10.6]} 19. Qd2
{[%clk 0:01:05.8]} 19... Bc6 {[%clk 0:00:55.1]} 20. Rfd1 {[%clk 0:00:55.7]}
20... Bxd5 {[%clk 0:00:45.7]} 21. Bxd5 {[%clk 0:00:50.5]} 21... Ne4 {[%clk
0:00:17.2]} 22. Qc2 {[%clk 0:00:36.2]} 22... Qa5 {[%clk 0:00:14.4]} 23. Bxb7
{[%clk 0:00:29.5]} 23... Nc3 {[%clk 0:00:13.1]} 24. Nc6 {[%clk 0:00:29.4]} 24...
Qc7 {[%clk 0:00:05.2]} 25. Nxb8 {[%clk 0:00:26.4]} 25... Rxb8 {[%clk 0:00:06.1]}
26. Bxa6 {[%clk 0:00:20.5]} 26... Ra8 {[%clk 0:00:02.9]} 27. Rb7 {[%clk
0:00:15.4]} 27... Qc6 {[%clk 0:00:02.3]} 28. Rdd7 {[%clk 0:00:13.3]} 28... Rxa6
{[%clk 0:00:01.7]} 29. Rxf7 {[%clk 0:00:13.1]} 29... Be5 {[%clk 0:00:01.7]} 30.
Qd3 {[%clk 0:00:10.2]} 30... Qd6 {[%clk 0:00:01.9]} 31. Qxd6 {[%clk 0:00:06.1]}
31... Bxd6 {[%clk 0:00:02.8]} 32. Rxh7 {[%clk 0:00:05.4]} 32... Be5 {[%clk
0:00:03.7]} 33. Rhe7 {[%clk 0:00:05]} 33... Rd6 {[%clk 0:00:04.6]} 34. Re8#
{[%clk 0:00:04.2]} 1-0